{"text_format":"3","workbook":"xlsx","n_sheets":3,"sheets":["Emploi du temps quotidien","Planificateur d’événements","Intervalles de temps"],"not_rendered":{"images":1,"defined_names":21},"read":"whole","date_system":"1900"}

{"sheet":"Emploi du temps quotidien","index":0,"n_rows":75,"n_cols":13,"rows_kept":75,"merged":[[1,1,5,2],[2,12,4,12],[3,7,4,7],[5,12,7,12],[6,1,8,2],[8,12,10,12],[9,7,10,7],[10,1,10,2],[11,12,13,12],[14,12,16,12],[15,7,16,7],[17,12,19,12],[18,1,18,2],[20,12,22,12],[21,7,22,7],[23,12,25,12],[25,1,25,2],[26,7,27,7],[26,12,28,12],[29,12,31,12],[31,7,32,7],[32,12,34,12]]}
[null,"Emploi du temps quotidien"]
[null,{"$f":"IFERROR(DAY(ValDate),\"\")","v":""},null,null,"Heure",{"$f":"IFERROR(UPPER(TEXT(DATE(AnnéeRapport,NuméroMois,JourRapport),\"j mmmm, aaaa\")),\"\")","v":"J FEBRUARY, MONDAY"},null,"APERÇU DES ACTIVITÉS DE LA SEMAINE",{"$nulls":3},"NOTES/LISTE DE TÂCHES"]
[{"$nulls":4},{"$f":"'Intervalles de temps'!E3","v":"06:00:00"},{"$f":"IFERROR(INDEX(PlanificateurÉvénements[],MATCH(DATEVALUE(ValDate)&EmploiDuTempsQuotidien[[#This Row],[Time]],RechercherDateEtHeure,0),3),\"\")","v":""},null,{"$f":"IFERROR(TEXT(DATEVALUE(ValDate)+1,\"jjjj\"),\"\")","v":""},{"$f":"IFERROR(INDEX(PlanificateurÉvénements[],MATCH($H$6&\"|\"&ROW(A1),PlanificateurÉvénements[VALEUR UNIQUE (CALCULÉE)],0),2),\"\")","v":""},{"$f":"IFERROR(INDEX(PlanificateurÉvénements[],MATCH($H$6&\"|\"&ROW(A1),PlanificateurÉvénements[VALEUR UNIQUE (CALCULÉE)],0),3),\"\")","v":""},null,null,"Récupérer les vêtements chez le nettoyeur"]
[{"$nulls":4},{"$f":"'Intervalles de temps'!E4","v":"06:15:00"},{"$f":"IFERROR(INDEX(PlanificateurÉvénements[],MATCH(DATEVALUE(ValDate)&EmploiDuTempsQuotidien[[#This Row],[Time]],RechercherDateEtHeure,0),3),\"\")","v":""},null,{"$f":"IFERROR(TEXT(DATEVALUE(ValDate)+1,\"j\"),\"\")","v":""},{"$f":"IFERROR(INDEX(PlanificateurÉvénements[],MATCH($H$6&\"|\"&ROW(A2),PlanificateurÉvénements[VALEUR UNIQUE (CALCULÉE)],0),2),\"\")","v":""},{"$f":"IFERROR(INDEX(PlanificateurÉvénements[],MATCH($H$6&\"|\"&ROW(A2),PlanificateurÉvénements[VALEUR UNIQUE (CALCULÉE)],0),3),\"\")","v":""}]
[{"$nulls":4},{"$f":"'Intervalles de temps'!E5","v":"06:30:00"},{"$f":"IFERROR(INDEX(PlanificateurÉvénements[],MATCH(DATEVALUE(ValDate)&EmploiDuTempsQuotidien[[#This Row],[Time]],RechercherDateEtHeure,0),3),\"\")","v":""},null,null,{"$f":"IFERROR(INDEX(PlanificateurÉvénements[],MATCH($H$6&\"|\"&ROW(A3),PlanificateurÉvénements[VALEUR UNIQUE (CALCULÉE)],0),2),\"\")","v":""},{"$f":"IFERROR(INDEX(PlanificateurÉvénements[],MATCH($H$6&\"|\"&ROW(A3),PlanificateurÉvénements[VALEUR UNIQUE (CALCULÉE)],0),3),\"\")","v":""}]
[{"$nulls":4},{"$f":"'Intervalles de temps'!E6","v":"06:45:00"},{"$f":"IFERROR(INDEX(PlanificateurÉvénements[],MATCH(DATEVALUE(ValDate)&EmploiDuTempsQuotidien[[#This Row],[Time]],RechercherDateEtHeure,0),3),\"\")","v":""},null,{"$f":"IFERROR(ValDate+1,\"\")","v":""},{"$f":"IFERROR(INDEX(PlanificateurÉvénements[],MATCH($H$6&\"|\"&ROW(A4),PlanificateurÉvénements[VALEUR UNIQUE (CALCULÉE)],0),2),\"\")","v":""},{"$f":"IFERROR(INDEX(PlanificateurÉvénements[],MATCH($H$6&\"|\"&ROW(A4),PlanificateurÉvénements[VALEUR UNIQUE (CALCULÉE)],0),3),\"\")","v":""},null,null,"Appeler l'entreprise de câblodistribution"]
[null,{"$f":"IFERROR(TEXT(ValDate,\"jjjj\"),\"\")","v":"J FEBRUARY, MONDAY"},null,null,{"$f":"'Intervalles de temps'!E7","v":"07:00:00"},{"$f":"IFERROR(INDEX(PlanificateurÉvénements[],MATCH(DATEVALUE(ValDate)&EmploiDuTempsQuotidien[[#This Row],[Time]],RechercherDateEtHeure,0),3),\"\")","v":""},null,null,{"$f":"IFERROR(INDEX(PlanificateurÉvénements[],MATCH($H$6&\"|\"&ROW(A5),PlanificateurÉvénements[VALEUR UNIQUE (CALCULÉE)],0),2),\"\")","v":""},{"$f":"IFERROR(INDEX(PlanificateurÉvénements[],MATCH($H$6&\"|\"&ROW(A5),PlanificateurÉvénements[VALEUR UNIQUE (CALCULÉE)],0),3),\"\")","v":""}]
[{"$nulls":4},{"$f":"'Intervalles de temps'!E8","v":"07:15:00"},{"$f":"IFERROR(INDEX(PlanificateurÉvénements[],MATCH(DATEVALUE(ValDate)&EmploiDuTempsQuotidien[[#This Row],[Time]],RechercherDateEtHeure,0),3),\"\")","v":""},null,null,{"$f":"IFERROR(INDEX(PlanificateurÉvénements[],MATCH($H$6&\"|\"&ROW(A6),PlanificateurÉvénements[VALEUR UNIQUE (CALCULÉE)],0),2),\"\")","v":""},{"$f":"IFERROR(INDEX(PlanificateurÉvénements[],MATCH($H$6&\"|\"&ROW(A6),PlanificateurÉvénements[VALEUR UNIQUE (CALCULÉE)],0),3),\"\")","v":""}]
[{"$nulls":4},{"$f":"'Intervalles de temps'!E9","v":"07:30:00"},{"$f":"IFERROR(INDEX(PlanificateurÉvénements[],MATCH(DATEVALUE(ValDate)&EmploiDuTempsQuotidien[[#This Row],[Time]],RechercherDateEtHeure,0),3),\"\")","v":""},null,{"$f":"IFERROR(TEXT(DATEVALUE(ValDate)+2,\"jjjj\"),\"\")","v":""},{"$f":"IFERROR(INDEX(PlanificateurÉvénements[],MATCH($H$12&\"|\"&ROW(A1),PlanificateurÉvénements[VALEUR UNIQUE (CALCULÉE)],0),2),\"\")","v":""},{"$f":"IFERROR(INDEX(PlanificateurÉvénements[],MATCH($H$12&\"|\"&ROW(A1),PlanificateurÉvénements[],0),3),\"\")","v":""}]
[{"$nulls":4},{"$f":"'Intervalles de temps'!E10","v":"07:45:00"},{"$f":"IFERROR(INDEX(PlanificateurÉvénements[],MATCH(DATEVALUE(ValDate)&EmploiDuTempsQuotidien[[#This Row],[Time]],RechercherDateEtHeure,0),3),\"\")","v":""},null,{"$f":"IFERROR(TEXT(DATEVALUE(ValDate)+2,\"j\"),\"\")","v":""},{"$f":"IFERROR(INDEX(PlanificateurÉvénements[],MATCH($H$12&\"|\"&ROW(A2),PlanificateurÉvénements[VALEUR UNIQUE (CALCULÉE)],0),2),\"\")","v":""},{"$f":"IFERROR(INDEX(PlanificateurÉvénements[],MATCH($H$12&\"|\"&ROW(A2),PlanificateurÉvénements[],0),3),\"\")","v":""}]
[null,"AFFICHER L'EMPLOI DU TEMPS",null,null,{"$f":"'Intervalles de temps'!E11","v":"08:00:00"},{"$f":"IFERROR(INDEX(PlanificateurÉvénements[],MATCH(DATEVALUE(ValDate)&EmploiDuTempsQuotidien[[#This Row],[Time]],RechercherDateEtHeure,0),3),\"\")","v":""},null,null,{"$f":"IFERROR(INDEX(PlanificateurÉvénements[],MATCH($H$12&\"|\"&ROW(A3),PlanificateurÉvénements[VALEUR UNIQUE (CALCULÉE)],0),2),\"\")","v":""},{"$f":"IFERROR(INDEX(PlanificateurÉvénements[],MATCH($H$12&\"|\"&ROW(A3),PlanificateurÉvénements[],0),3),\"\")","v":""}]
[{"$nulls":4},{"$f":"'Intervalles de temps'!E12","v":"08:15:00"},{"$f":"IFERROR(INDEX(PlanificateurÉvénements[],MATCH(DATEVALUE(ValDate)&EmploiDuTempsQuotidien[[#This Row],[Time]],RechercherDateEtHeure,0),3),\"\")","v":""},null,{"$f":"IFERROR(ValDate+2,\"\")","v":""},{"$f":"IFERROR(INDEX(PlanificateurÉvénements[],MATCH($H$12&\"|\"&ROW(A4),PlanificateurÉvénements[VALEUR UNIQUE (CALCULÉE)],0),2),\"\")","v":""},{"$f":"IFERROR(INDEX(PlanificateurÉvénements[],MATCH($H$12&\"|\"&ROW(A4),PlanificateurÉvénements[],0),3),\"\")","v":""}]
[null,"Année",null,null,{"$f":"'Intervalles de temps'!E13","v":"08:30:00"},{"$f":"IFERROR(INDEX(PlanificateurÉvénements[],MATCH(DATEVALUE(ValDate)&EmploiDuTempsQuotidien[[#This Row],[Time]],RechercherDateEtHeure,0),3),\"\")","v":""},null,null,{"$f":"IFERROR(INDEX(PlanificateurÉvénements[],MATCH($H$12&\"|\"&ROW(A5),PlanificateurÉvénements[VALEUR UNIQUE (CALCULÉE)],0),2),\"\")","v":""},{"$f":"IFERROR(INDEX(PlanificateurÉvénements[],MATCH($H$12&\"|\"&ROW(A5),PlanificateurÉvénements[],0),3),\"\")","v":""}]
[{"$nulls":4},{"$f":"'Intervalles de temps'!E14","v":"08:45:00"},{"$f":"IFERROR(INDEX(PlanificateurÉvénements[],MATCH(DATEVALUE(ValDate)&EmploiDuTempsQuotidien[[#This Row],[Time]],RechercherDateEtHeure,0),3),\"\")","v":""},null,null,{"$f":"IFERROR(INDEX(PlanificateurÉvénements[],MATCH($H$12&\"|\"&ROW(A6),PlanificateurÉvénements[VALEUR UNIQUE (CALCULÉE)],0),2),\"\")","v":""},{"$f":"IFERROR(INDEX(PlanificateurÉvénements[],MATCH($H$12&\"|\"&ROW(A6),PlanificateurÉvénements[],0),3),\"\")","v":""}]
[null,"Mois",null,null,{"$f":"'Intervalles de temps'!E15","v":"09:00:00"},{"$f":"IFERROR(INDEX(PlanificateurÉvénements[],MATCH(DATEVALUE(ValDate)&EmploiDuTempsQuotidien[[#This Row],[Time]],RechercherDateEtHeure,0),3),\"\")","v":""},null,{"$f":"IFERROR(TEXT(DATEVALUE(ValDate)+3,\"jjjj\"),\"\")","v":""},{"$f":"IFERROR(INDEX(PlanificateurÉvénements[],MATCH($H$18&\"|\"&ROW(A1),PlanificateurÉvénements[VALEUR UNIQUE (CALCULÉE)],0),2),\"\")","v":""},{"$f":"IFERROR(INDEX(PlanificateurÉvénements[],MATCH($H$12&\"|\"&ROW(A1),PlanificateurÉvénements[],0),3),\"\")","v":""}]
[{"$nulls":4},{"$f":"'Intervalles de temps'!E16","v":"09:15:00"},{"$f":"IFERROR(INDEX(PlanificateurÉvénements[],MATCH(DATEVALUE(ValDate)&EmploiDuTempsQuotidien[[#This Row],[Time]],RechercherDateEtHeure,0),3),\"\")","v":""},null,{"$f":"IFERROR(TEXT(DATEVALUE(ValDate)+3,\"j\"),\"\")","v":""},{"$f":"IFERROR(INDEX(PlanificateurÉvénements[],MATCH($H$18&\"|\"&ROW(A2),PlanificateurÉvénements[VALEUR UNIQUE (CALCULÉE)],0),2),\"\")","v":""},{"$f":"IFERROR(INDEX(PlanificateurÉvénements[],MATCH($H$12&\"|\"&ROW(A2),PlanificateurÉvénements[],0),3),\"\")","v":""}]
[null,"Jour",null,null,{"$f":"'Intervalles de temps'!E17","v":"09:30:00"},{"$f":"IFERROR(INDEX(PlanificateurÉvénements[],MATCH(DATEVALUE(ValDate)&EmploiDuTempsQuotidien[[#This Row],[Time]],RechercherDateEtHeure,0),3),\"\")","v":""},null,null,{"$f":"IFERROR(INDEX(PlanificateurÉvénements[],MATCH($H$18&\"|\"&ROW(A3),PlanificateurÉvénements[VALEUR UNIQUE (CALCULÉE)],0),2),\"\")","v":""},{"$f":"IFERROR(INDEX(PlanificateurÉvénements[],MATCH($H$12&\"|\"&ROW(A3),PlanificateurÉvénements[],0),3),\"\")","v":""}]
[{"$nulls":4},{"$f":"'Intervalles de temps'!E18","v":"09:45:00"},{"$f":"IFERROR(INDEX(PlanificateurÉvénements[],MATCH(DATEVALUE(ValDate)&EmploiDuTempsQuotidien[[#This Row],[Time]],RechercherDateEtHeure,0),3),\"\")","v":""},null,{"$f":"IFERROR(ValDate+3,\"\")","v":""},{"$f":"IFERROR(INDEX(PlanificateurÉvénements[],MATCH($H$18&\"|\"&ROW(A4),PlanificateurÉvénements[VALEUR UNIQUE (CALCULÉE)],0),2),\"\")","v":""},{"$f":"IFERROR(INDEX(PlanificateurÉvénements[],MATCH($H$12&\"|\"&ROW(A4),PlanificateurÉvénements[],0),3),\"\")","v":""}]
[null,"MODIFIER L'EMPLOI DU TEMOS",null,null,{"$f":"'Intervalles de temps'!E19","v":"10:00:00"},{"$f":"IFERROR(INDEX(PlanificateurÉvénements[],MATCH(DATEVALUE(ValDate)&EmploiDuTempsQuotidien[[#This Row],[Time]],RechercherDateEtHeure,0),3),\"\")","v":""},null,null,{"$f":"IFERROR(INDEX(PlanificateurÉvénements[],MATCH($H$18&\"|\"&ROW(A5),PlanificateurÉvénements[VALEUR UNIQUE (CALCULÉE)],0),2),\"\")","v":""},{"$f":"IFERROR(INDEX(PlanificateurÉvénements[],MATCH($H$12&\"|\"&ROW(A5),PlanificateurÉvénements[],0),3),\"\")","v":""}]
[{"$nulls":4},{"$f":"'Intervalles de temps'!E20","v":"10:15:00"},{"$f":"IFERROR(INDEX(PlanificateurÉvénements[],MATCH(DATEVALUE(ValDate)&EmploiDuTempsQuotidien[[#This Row],[Time]],RechercherDateEtHeure,0),3),\"\")","v":""},null,null,{"$f":"IFERROR(INDEX(PlanificateurÉvénements[],MATCH($H$18&\"|\"&ROW(A6),PlanificateurÉvénements[VALEUR UNIQUE (CALCULÉE)],0),2),\"\")","v":""},{"$f":"IFERROR(INDEX(PlanificateurÉvénements[],MATCH($H$12&\"|\"&ROW(A6),PlanificateurÉvénements[],0),3),\"\")","v":""}]
[null,"Opérez une sélection pour modifier les intervalles de temps",null,null,{"$f":"'Intervalles de temps'!E21","v":"10:30:00"},{"$f":"IFERROR(INDEX(PlanificateurÉvénements[],MATCH(DATEVALUE(ValDate)&EmploiDuTempsQuotidien[[#This Row],[Time]],RechercherDateEtHeure,0),3),\"\")","v":""},null,{"$f":"IFERROR(TEXT(DATEVALUE(ValDate)+4,\"jjjj\"),\"\")","v":""},{"$f":"IFERROR(INDEX(PlanificateurÉvénements[],MATCH($H$24&\"|\"&ROW(A1),PlanificateurÉvénements[VALEUR UNIQUE (CALCULÉE)],0),2),\"\")","v":""},{"$f":"IFERROR(INDEX(PlanificateurÉvénements[],MATCH($H$24&\"|\"&ROW(A1),PlanificateurÉvénements[VALEUR UNIQUE (CALCULÉE)],0),3),\"\")","v":""}]
[{"$nulls":4},{"$f":"'Intervalles de temps'!E22","v":"10:45:00"},{"$f":"IFERROR(INDEX(PlanificateurÉvénements[],MATCH(DATEVALUE(ValDate)&EmploiDuTempsQuotidien[[#This Row],[Time]],RechercherDateEtHeure,0),3),\"\")","v":""},null,{"$f":"IFERROR(TEXT(DATEVALUE(ValDate)+4,\"j\"),\"\")","v":""},{"$f":"IFERROR(INDEX(PlanificateurÉvénements[],MATCH($H$24&\"|\"&ROW(A2),PlanificateurÉvénements[VALEUR UNIQUE (CALCULÉE)],0),2),\"\")","v":""},{"$f":"IFERROR(INDEX(PlanificateurÉvénements[],MATCH($H$24&\"|\"&ROW(A2),PlanificateurÉvénements[VALEUR UNIQUE (CALCULÉE)],0),3),\"\")","v":""}]
[null,"Opérez une sélection pour ajouter un événement",null,null,{"$f":"'Intervalles de temps'!E23","v":"11:00:00"},{"$f":"IFERROR(INDEX(PlanificateurÉvénements[],MATCH(DATEVALUE(ValDate)&EmploiDuTempsQuotidien[[#This Row],[Time]],RechercherDateEtHeure,0),3),\"\")","v":""},null,null,{"$f":"IFERROR(INDEX(PlanificateurÉvénements[],MATCH($H$24&\"|\"&ROW(A3),PlanificateurÉvénements[VALEUR UNIQUE (CALCULÉE)],0),2),\"\")","v":""},{"$f":"IFERROR(INDEX(PlanificateurÉvénements[],MATCH($H$24&\"|\"&ROW(A3),PlanificateurÉvénements[VALEUR UNIQUE (CALCULÉE)],0),3),\"\")","v":""}]
[{"$nulls":4},{"$f":"'Intervalles de temps'!E24","v":"11:15:00"},{"$f":"IFERROR(INDEX(PlanificateurÉvénements[],MATCH(DATEVALUE(ValDate)&EmploiDuTempsQuotidien[[#This Row],[Time]],RechercherDateEtHeure,0),3),\"\")","v":""},null,{"$f":"IFERROR(ValDate+4,\"\")","v":""},{"$f":"IFERROR(INDEX(PlanificateurÉvénements[],MATCH($H$24&\"|\"&ROW(A4),PlanificateurÉvénements[VALEUR UNIQUE (CALCULÉE)],0),2),\"\")","v":""},{"$f":"IFERROR(INDEX(PlanificateurÉvénements[],MATCH($H$24&\"|\"&ROW(A4),PlanificateurÉvénements[VALEUR UNIQUE (CALCULÉE)],0),3),\"\")","v":""}]
[null,"FAITS SAILLANTS DE L'EMPLOI DU TEMPS :",null,null,{"$f":"'Intervalles de temps'!E25","v":"11:30:00"},{"$f":"IFERROR(INDEX(PlanificateurÉvénements[],MATCH(DATEVALUE(ValDate)&EmploiDuTempsQuotidien[[#This Row],[Time]],RechercherDateEtHeure,0),3),\"\")","v":""},null,null,{"$f":"IFERROR(INDEX(PlanificateurÉvénements[],MATCH($H$24&\"|\"&ROW(A5),PlanificateurÉvénements[VALEUR UNIQUE (CALCULÉE)],0),2),\"\")","v":""},{"$f":"IFERROR(INDEX(PlanificateurÉvénements[],MATCH($H$24&\"|\"&ROW(A5),PlanificateurÉvénements[VALEUR UNIQUE (CALCULÉE)],0),3),\"\")","v":""}]
[null,"Pause",null,null,{"$f":"'Intervalles de temps'!E26","v":"11:45:00"},{"$f":"IFERROR(INDEX(PlanificateurÉvénements[],MATCH(DATEVALUE(ValDate)&EmploiDuTempsQuotidien[[#This Row],[Time]],RechercherDateEtHeure,0),3),\"\")","v":""},null,{"$f":"IFERROR(TEXT(DATEVALUE(ValDate)+5,\"jjjj\"),\"\")","v":""},{"$f":"IFERROR(INDEX(PlanificateurÉvénements[],MATCH($H$29&\"|\"&ROW(A1),PlanificateurÉvénements[VALEUR UNIQUE (CALCULÉE)],0),2),\"\")","v":""},{"$f":"IFERROR(INDEX(PlanificateurÉvénements[],MATCH($H$29&\"|\"&ROW(A1),PlanificateurÉvénements[VALEUR UNIQUE (CALCULÉE)],0),3),\"\")","v":""}]
[{"$nulls":4},{"$f":"'Intervalles de temps'!E27","v":"12:00:00"},{"$f":"IFERROR(INDEX(PlanificateurÉvénements[],MATCH(DATEVALUE(ValDate)&EmploiDuTempsQuotidien[[#This Row],[Time]],RechercherDateEtHeure,0),3),\"\")","v":""},null,{"$f":"IFERROR(TEXT(DATEVALUE(ValDate)+5,\"j\"),\"\")","v":""},{"$f":"IFERROR(INDEX(PlanificateurÉvénements[],MATCH($H$29&\"|\"&ROW(A2),PlanificateurÉvénements[VALEUR UNIQUE (CALCULÉE)],0),2),\"\")","v":""},{"$f":"IFERROR(INDEX(PlanificateurÉvénements[],MATCH($H$29&\"|\"&ROW(A2),PlanificateurÉvénements[VALEUR UNIQUE (CALCULÉE)],0),3),\"\")","v":""}]
[{"$nulls":4},{"$f":"'Intervalles de temps'!E28","v":"12:15:00"},{"$f":"IFERROR(INDEX(PlanificateurÉvénements[],MATCH(DATEVALUE(ValDate)&EmploiDuTempsQuotidien[[#This Row],[Time]],RechercherDateEtHeure,0),3),\"\")","v":""},null,null,{"$f":"IFERROR(INDEX(PlanificateurÉvénements[],MATCH($H$29&\"|\"&ROW(A3),PlanificateurÉvénements[VALEUR UNIQUE (CALCULÉE)],0),2),\"\")","v":""},{"$f":"IFERROR(INDEX(PlanificateurÉvénements[],MATCH($H$29&\"|\"&ROW(A3),PlanificateurÉvénements[VALEUR UNIQUE (CALCULÉE)],0),3),\"\")","v":""}]
[{"$nulls":4},{"$f":"'Intervalles de temps'!E29","v":"12:30:00"},{"$f":"IFERROR(INDEX(PlanificateurÉvénements[],MATCH(DATEVALUE(ValDate)&EmploiDuTempsQuotidien[[#This Row],[Time]],RechercherDateEtHeure,0),3),\"\")","v":""},null,{"$f":"IFERROR(ValDate+5,\"\")","v":""},{"$f":"IFERROR(INDEX(PlanificateurÉvénements[],MATCH($H$29&\"|\"&ROW(A4),PlanificateurÉvénements[VALEUR UNIQUE (CALCULÉE)],0),2),\"\")","v":""},{"$f":"IFERROR(INDEX(PlanificateurÉvénements[],MATCH($H$29&\"|\"&ROW(A4),PlanificateurÉvénements[VALEUR UNIQUE (CALCULÉE)],0),3),\"\")","v":""}]
[{"$nulls":4},{"$f":"'Intervalles de temps'!E30","v":"12:45:00"},{"$f":"IFERROR(INDEX(PlanificateurÉvénements[],MATCH(DATEVALUE(ValDate)&EmploiDuTempsQuotidien[[#This Row],[Time]],RechercherDateEtHeure,0),3),\"\")","v":""},null,null,{"$f":"IFERROR(INDEX(PlanificateurÉvénements[],MATCH($H$29&\"|\"&ROW(A5),PlanificateurÉvénements[VALEUR UNIQUE (CALCULÉE)],0),2),\"\")","v":""},{"$f":"IFERROR(INDEX(PlanificateurÉvénements[],MATCH($H$29&\"|\"&ROW(A5),PlanificateurÉvénements[VALEUR UNIQUE (CALCULÉE)],0),3),\"\")","v":""}]
[{"$nulls":4},{"$f":"'Intervalles de temps'!E31","v":"13:00:00"},{"$f":"IFERROR(INDEX(PlanificateurÉvénements[],MATCH(DATEVALUE(ValDate)&EmploiDuTempsQuotidien[[#This Row],[Time]],RechercherDateEtHeure,0),3),\"\")","v":""},null,{"$f":"IFERROR(TEXT(DATEVALUE(ValDate)+6,\"jjjj\"),\"\")","v":""},{"$f":"IFERROR(INDEX(PlanificateurÉvénements[],MATCH($H$34&\"|\"&ROW(A1),PlanificateurÉvénements[VALEUR UNIQUE (CALCULÉE)],0),2),\"\")","v":""},{"$f":"IFERROR(INDEX(PlanificateurÉvénements[],MATCH($H$34&\"|\"&ROW(A1),PlanificateurÉvénements[VALEUR UNIQUE (CALCULÉE)],0),3),\"\")","v":""}]
[{"$nulls":4},{"$f":"'Intervalles de temps'!E32","v":"13:15:00"},{"$f":"IFERROR(INDEX(PlanificateurÉvénements[],MATCH(DATEVALUE(ValDate)&EmploiDuTempsQuotidien[[#This Row],[Time]],RechercherDateEtHeure,0),3),\"\")","v":""},null,{"$f":"IFERROR(TEXT(DATEVALUE(ValDate)+6,\"j\"),\"\")","v":""},{"$f":"IFERROR(INDEX(PlanificateurÉvénements[],MATCH($H$34&\"|\"&ROW(A2),PlanificateurÉvénements[VALEUR UNIQUE (CALCULÉE)],0),2),\"\")","v":""},{"$f":"IFERROR(INDEX(PlanificateurÉvénements[],MATCH($H$34&\"|\"&ROW(A2),PlanificateurÉvénements[VALEUR UNIQUE (CALCULÉE)],0),3),\"\")","v":""}]
[{"$nulls":4},{"$f":"'Intervalles de temps'!E33","v":"13:30:00"},{"$f":"IFERROR(INDEX(PlanificateurÉvénements[],MATCH(DATEVALUE(ValDate)&EmploiDuTempsQuotidien[[#This Row],[Time]],RechercherDateEtHeure,0),3),\"\")","v":""},null,null,{"$f":"IFERROR(INDEX(PlanificateurÉvénements[],MATCH($H$34&\"|\"&ROW(A3),PlanificateurÉvénements[VALEUR UNIQUE (CALCULÉE)],0),2),\"\")","v":""},{"$f":"IFERROR(INDEX(PlanificateurÉvénements[],MATCH($H$34&\"|\"&ROW(A3),PlanificateurÉvénements[VALEUR UNIQUE (CALCULÉE)],0),3),\"\")","v":""}]
[{"$nulls":4},{"$f":"'Intervalles de temps'!E34","v":"13:45:00"},{"$f":"IFERROR(INDEX(PlanificateurÉvénements[],MATCH(DATEVALUE(ValDate)&EmploiDuTempsQuotidien[[#This Row],[Time]],RechercherDateEtHeure,0),3),\"\")","v":""},null,{"$f":"IFERROR(ValDate+6,\"\")","v":""},{"$f":"IFERROR(INDEX(PlanificateurÉvénements[],MATCH($H$34&\"|\"&ROW(A4),PlanificateurÉvénements[VALEUR UNIQUE (CALCULÉE)],0),2),\"\")","v":""},{"$f":"IFERROR(INDEX(PlanificateurÉvénements[],MATCH($H$34&\"|\"&ROW(A4),PlanificateurÉvénements[VALEUR UNIQUE (CALCULÉE)],0),3),\"\")","v":""}]
[{"$nulls":4},{"$f":"'Intervalles de temps'!E35","v":"14:00:00"},{"$f":"IFERROR(INDEX(PlanificateurÉvénements[],MATCH(DATEVALUE(ValDate)&EmploiDuTempsQuotidien[[#This Row],[Time]],RechercherDateEtHeure,0),3),\"\")","v":""},null,null,{"$f":"IFERROR(INDEX(PlanificateurÉvénements[],MATCH($H$34&\"|\"&ROW(A5),PlanificateurÉvénements[VALEUR UNIQUE (CALCULÉE)],0),2),\"\")","v":""},{"$f":"IFERROR(INDEX(PlanificateurÉvénements[],MATCH($H$34&\"|\"&ROW(A5),PlanificateurÉvénements[VALEUR UNIQUE (CALCULÉE)],0),3),\"\")","v":""}]
[{"$nulls":4},{"$f":"'Intervalles de temps'!E36","v":"14:15:00"},{"$f":"IFERROR(INDEX(PlanificateurÉvénements[],MATCH(DATEVALUE(ValDate)&EmploiDuTempsQuotidien[[#This Row],[Time]],RechercherDateEtHeure,0),3),\"\")","v":""}]
[{"$nulls":4},{"$f":"'Intervalles de temps'!E37","v":"14:30:00"},{"$f":"IFERROR(INDEX(PlanificateurÉvénements[],MATCH(DATEVALUE(ValDate)&EmploiDuTempsQuotidien[[#This Row],[Time]],RechercherDateEtHeure,0),3),\"\")","v":""}]
[{"$nulls":4},{"$f":"'Intervalles de temps'!E38","v":"14:45:00"},{"$f":"IFERROR(INDEX(PlanificateurÉvénements[],MATCH(DATEVALUE(ValDate)&EmploiDuTempsQuotidien[[#This Row],[Time]],RechercherDateEtHeure,0),3),\"\")","v":""}]
[{"$nulls":4},{"$f":"'Intervalles de temps'!E39","v":"15:00:00"},{"$f":"IFERROR(INDEX(PlanificateurÉvénements[],MATCH(DATEVALUE(ValDate)&EmploiDuTempsQuotidien[[#This Row],[Time]],RechercherDateEtHeure,0),3),\"\")","v":""}]
[{"$nulls":4},{"$f":"'Intervalles de temps'!E40","v":"15:15:00"},{"$f":"IFERROR(INDEX(PlanificateurÉvénements[],MATCH(DATEVALUE(ValDate)&EmploiDuTempsQuotidien[[#This Row],[Time]],RechercherDateEtHeure,0),3),\"\")","v":""}]
[{"$nulls":4},{"$f":"'Intervalles de temps'!E41","v":"15:30:00"},{"$f":"IFERROR(INDEX(PlanificateurÉvénements[],MATCH(DATEVALUE(ValDate)&EmploiDuTempsQuotidien[[#This Row],[Time]],RechercherDateEtHeure,0),3),\"\")","v":""}]
[{"$nulls":4},{"$f":"'Intervalles de temps'!E42","v":"15:45:00"},{"$f":"IFERROR(INDEX(PlanificateurÉvénements[],MATCH(DATEVALUE(ValDate)&EmploiDuTempsQuotidien[[#This Row],[Time]],RechercherDateEtHeure,0),3),\"\")","v":""}]
[{"$nulls":4},{"$f":"'Intervalles de temps'!E43","v":"16:00:00"},{"$f":"IFERROR(INDEX(PlanificateurÉvénements[],MATCH(DATEVALUE(ValDate)&EmploiDuTempsQuotidien[[#This Row],[Time]],RechercherDateEtHeure,0),3),\"\")","v":""}]
[{"$nulls":4},{"$f":"'Intervalles de temps'!E44","v":"16:15:00"},{"$f":"IFERROR(INDEX(PlanificateurÉvénements[],MATCH(DATEVALUE(ValDate)&EmploiDuTempsQuotidien[[#This Row],[Time]],RechercherDateEtHeure,0),3),\"\")","v":""}]
[{"$nulls":4},{"$f":"'Intervalles de temps'!E45","v":"16:30:00"},{"$f":"IFERROR(INDEX(PlanificateurÉvénements[],MATCH(DATEVALUE(ValDate)&EmploiDuTempsQuotidien[[#This Row],[Time]],RechercherDateEtHeure,0),3),\"\")","v":""}]
[{"$nulls":4},{"$f":"'Intervalles de temps'!E46","v":"16:45:00"},{"$f":"IFERROR(INDEX(PlanificateurÉvénements[],MATCH(DATEVALUE(ValDate)&EmploiDuTempsQuotidien[[#This Row],[Time]],RechercherDateEtHeure,0),3),\"\")","v":""}]
[{"$nulls":4},{"$f":"'Intervalles de temps'!E47","v":"17:00:00"},{"$f":"IFERROR(INDEX(PlanificateurÉvénements[],MATCH(DATEVALUE(ValDate)&EmploiDuTempsQuotidien[[#This Row],[Time]],RechercherDateEtHeure,0),3),\"\")","v":""}]
[{"$nulls":4},{"$f":"'Intervalles de temps'!E48","v":"17:15:00"},{"$f":"IFERROR(INDEX(PlanificateurÉvénements[],MATCH(DATEVALUE(ValDate)&EmploiDuTempsQuotidien[[#This Row],[Time]],RechercherDateEtHeure,0),3),\"\")","v":""}]
[{"$nulls":4},{"$f":"'Intervalles de temps'!E49","v":"17:30:00"},{"$f":"IFERROR(INDEX(PlanificateurÉvénements[],MATCH(DATEVALUE(ValDate)&EmploiDuTempsQuotidien[[#This Row],[Time]],RechercherDateEtHeure,0),3),\"\")","v":""}]
[{"$nulls":4},{"$f":"'Intervalles de temps'!E50","v":"17:45:00"},{"$f":"IFERROR(INDEX(PlanificateurÉvénements[],MATCH(DATEVALUE(ValDate)&EmploiDuTempsQuotidien[[#This Row],[Time]],RechercherDateEtHeure,0),3),\"\")","v":""}]
[{"$nulls":4},{"$f":"'Intervalles de temps'!E51","v":"18:00:00"},{"$f":"IFERROR(INDEX(PlanificateurÉvénements[],MATCH(DATEVALUE(ValDate)&EmploiDuTempsQuotidien[[#This Row],[Time]],RechercherDateEtHeure,0),3),\"\")","v":""}]
[{"$nulls":4},{"$f":"'Intervalles de temps'!E52","v":"18:15:00"},{"$f":"IFERROR(INDEX(PlanificateurÉvénements[],MATCH(DATEVALUE(ValDate)&EmploiDuTempsQuotidien[[#This Row],[Time]],RechercherDateEtHeure,0),3),\"\")","v":""}]
[{"$nulls":4},{"$f":"'Intervalles de temps'!E53","v":"18:30:00"},{"$f":"IFERROR(INDEX(PlanificateurÉvénements[],MATCH(DATEVALUE(ValDate)&EmploiDuTempsQuotidien[[#This Row],[Time]],RechercherDateEtHeure,0),3),\"\")","v":""}]
[{"$nulls":4},{"$f":"'Intervalles de temps'!E54","v":"18:45:00"},{"$f":"IFERROR(INDEX(PlanificateurÉvénements[],MATCH(DATEVALUE(ValDate)&EmploiDuTempsQuotidien[[#This Row],[Time]],RechercherDateEtHeure,0),3),\"\")","v":""}]
[{"$nulls":4},{"$f":"'Intervalles de temps'!E55","v":"19:00:00"},{"$f":"IFERROR(INDEX(PlanificateurÉvénements[],MATCH(DATEVALUE(ValDate)&EmploiDuTempsQuotidien[[#This Row],[Time]],RechercherDateEtHeure,0),3),\"\")","v":""}]
[{"$nulls":4},{"$f":"'Intervalles de temps'!E56","v":"19:15:00"},{"$f":"IFERROR(INDEX(PlanificateurÉvénements[],MATCH(DATEVALUE(ValDate)&EmploiDuTempsQuotidien[[#This Row],[Time]],RechercherDateEtHeure,0),3),\"\")","v":""}]
[{"$nulls":4},{"$f":"'Intervalles de temps'!E57","v":"19:30:00"},{"$f":"IFERROR(INDEX(PlanificateurÉvénements[],MATCH(DATEVALUE(ValDate)&EmploiDuTempsQuotidien[[#This Row],[Time]],RechercherDateEtHeure,0),3),\"\")","v":""}]
[{"$nulls":4},{"$f":"'Intervalles de temps'!E58","v":"19:45:00"},{"$f":"IFERROR(INDEX(PlanificateurÉvénements[],MATCH(DATEVALUE(ValDate)&EmploiDuTempsQuotidien[[#This Row],[Time]],RechercherDateEtHeure,0),3),\"\")","v":""}]
[{"$nulls":4},{"$f":"'Intervalles de temps'!E59","v":"20:00:00"},{"$f":"IFERROR(INDEX(PlanificateurÉvénements[],MATCH(DATEVALUE(ValDate)&EmploiDuTempsQuotidien[[#This Row],[Time]],RechercherDateEtHeure,0),3),\"\")","v":""}]
[{"$nulls":4},{"$f":"'Intervalles de temps'!E60","v":"20:15:00"},{"$f":"IFERROR(INDEX(PlanificateurÉvénements[],MATCH(DATEVALUE(ValDate)&EmploiDuTempsQuotidien[[#This Row],[Time]],RechercherDateEtHeure,0),3),\"\")","v":""}]
[{"$nulls":4},{"$f":"'Intervalles de temps'!E61","v":"20:30:00"},{"$f":"IFERROR(INDEX(PlanificateurÉvénements[],MATCH(DATEVALUE(ValDate)&EmploiDuTempsQuotidien[[#This Row],[Time]],RechercherDateEtHeure,0),3),\"\")","v":""}]
[{"$nulls":4},{"$f":"'Intervalles de temps'!E62","v":"20:45:00"},{"$f":"IFERROR(INDEX(PlanificateurÉvénements[],MATCH(DATEVALUE(ValDate)&EmploiDuTempsQuotidien[[#This Row],[Time]],RechercherDateEtHeure,0),3),\"\")","v":""}]
[{"$nulls":4},{"$f":"'Intervalles de temps'!E63","v":"21:00:00"},{"$f":"IFERROR(INDEX(PlanificateurÉvénements[],MATCH(DATEVALUE(ValDate)&EmploiDuTempsQuotidien[[#This Row],[Time]],RechercherDateEtHeure,0),3),\"\")","v":""}]
[{"$nulls":4},{"$f":"'Intervalles de temps'!E64","v":""},{"$f":"IFERROR(INDEX(PlanificateurÉvénements[],MATCH(DATEVALUE(ValDate)&EmploiDuTempsQuotidien[[#This Row],[Time]],RechercherDateEtHeure,0),3),\"\")","v":""}]
[{"$nulls":4},{"$f":"'Intervalles de temps'!E65","v":""},{"$f":"IFERROR(INDEX(PlanificateurÉvénements[],MATCH(DATEVALUE(ValDate)&EmploiDuTempsQuotidien[[#This Row],[Time]],RechercherDateEtHeure,0),3),\"\")","v":""}]
[{"$nulls":4},{"$f":"'Intervalles de temps'!E66","v":""},{"$f":"IFERROR(INDEX(PlanificateurÉvénements[],MATCH(DATEVALUE(ValDate)&EmploiDuTempsQuotidien[[#This Row],[Time]],RechercherDateEtHeure,0),3),\"\")","v":""}]
[{"$nulls":4},{"$f":"'Intervalles de temps'!E67","v":""},{"$f":"IFERROR(INDEX(PlanificateurÉvénements[],MATCH(DATEVALUE(ValDate)&EmploiDuTempsQuotidien[[#This Row],[Time]],RechercherDateEtHeure,0),3),\"\")","v":""}]
[{"$nulls":4},{"$f":"'Intervalles de temps'!E68","v":""},{"$f":"IFERROR(INDEX(PlanificateurÉvénements[],MATCH(DATEVALUE(ValDate)&EmploiDuTempsQuotidien[[#This Row],[Time]],RechercherDateEtHeure,0),3),\"\")","v":""}]
[{"$nulls":4},{"$f":"'Intervalles de temps'!E69","v":""},{"$f":"IFERROR(INDEX(PlanificateurÉvénements[],MATCH(DATEVALUE(ValDate)&EmploiDuTempsQuotidien[[#This Row],[Time]],RechercherDateEtHeure,0),3),\"\")","v":""}]
[{"$nulls":4},{"$f":"'Intervalles de temps'!E70","v":""},{"$f":"IFERROR(INDEX(PlanificateurÉvénements[],MATCH(DATEVALUE(ValDate)&EmploiDuTempsQuotidien[[#This Row],[Time]],RechercherDateEtHeure,0),3),\"\")","v":""}]
[{"$nulls":4},{"$f":"'Intervalles de temps'!E71","v":""},{"$f":"IFERROR(INDEX(PlanificateurÉvénements[],MATCH(DATEVALUE(ValDate)&EmploiDuTempsQuotidien[[#This Row],[Time]],RechercherDateEtHeure,0),3),\"\")","v":""}]
[{"$nulls":4},{"$f":"'Intervalles de temps'!E72","v":""},{"$f":"IFERROR(INDEX(PlanificateurÉvénements[],MATCH(DATEVALUE(ValDate)&EmploiDuTempsQuotidien[[#This Row],[Time]],RechercherDateEtHeure,0),3),\"\")","v":""}]
[{"$nulls":4},{"$f":"'Intervalles de temps'!E73","v":""},{"$f":"IFERROR(INDEX(PlanificateurÉvénements[],MATCH(DATEVALUE(ValDate)&EmploiDuTempsQuotidien[[#This Row],[Time]],RechercherDateEtHeure,0),3),\"\")","v":""}]
[{"$nulls":4},{"$f":"'Intervalles de temps'!E74","v":""},{"$f":"IFERROR(INDEX(PlanificateurÉvénements[],MATCH(DATEVALUE(ValDate)&EmploiDuTempsQuotidien[[#This Row],[Time]],RechercherDateEtHeure,0),3),\"\")","v":""}]
[{"$nulls":4},{"$f":"'Intervalles de temps'!E75","v":""},{"$f":"IFERROR(INDEX(PlanificateurÉvénements[],MATCH(DATEVALUE(ValDate)&EmploiDuTempsQuotidien[[#This Row],[Time]],RechercherDateEtHeure,0),3),\"\")","v":""}]

{"sheet":"Planificateur d’événements","index":1,"n_rows":15,"n_cols":8,"rows_kept":15,"merged":[[1,1,4,2],[5,1,6,2],[7,1,7,2]]}
[null,"Planificateur d’événements"]
[null,{"$f":"DAY(ValDate)","v":{"$error":"#VALUE!"}},null,null,"DATE","HEURE","DESCRIPTION","VALEUR UNIQUE (CALCULÉE)"]
[{"$nulls":4},{"$f":"TODAY()","v":"2018-02-05"},"06:00:00","Réveil",{"$f":"PlanificateurÉvénements[[#This Row],[DATE]]&\"|\"&COUNTIF($E$3:E3,E3)","v":"43136|1"}]
[{"$nulls":4},{"$f":"TODAY()","v":"2018-02-05"},"06:30:00","Douche",{"$f":"PlanificateurÉvénements[[#This Row],[DATE]]&\"|\"&COUNTIF($E$3:E4,E4)","v":"43136|2"}]
[{"$nulls":4},"2018-02-05","07:30:00","Départ au travail",{"$f":"PlanificateurÉvénements[[#This Row],[DATE]]&\"|\"&COUNTIF($E$3:E5,E5)","v":"43136|3"}]
[null,{"$f":"TEXT(ValDate,\"jjjj\")","v":"J FEBRUARY, MONDAY"},null,null,"2018-02-05","08:00:00","Changement d’équipe",{"$f":"PlanificateurÉvénements[[#This Row],[DATE]]&\"|\"&COUNTIF($E$3:E6,E6)","v":"43136|4"}]
[{"$nulls":4},"2018-02-05","10:00:00","Pause",{"$f":"PlanificateurÉvénements[[#This Row],[DATE]]&\"|\"&COUNTIF($E$3:E7,E7)","v":"43136|5"}]
[null,{"$f":"ValDate","v":"J FEBRUARY, MONDAY"},null,null,"2018-02-05","12:00:00","Dîner",{"$f":"PlanificateurÉvénements[[#This Row],[DATE]]&\"|\"&COUNTIF($E$3:E8,E8)","v":"43136|6"}]
[{"$nulls":4},"2018-02-05","13:00:00","Retour au travail",{"$f":"PlanificateurÉvénements[[#This Row],[DATE]]&\"|\"&COUNTIF($E$3:E9,E9)","v":"43136|7"}]
[null,"Opérez une sélection pour modifier les intervalles de temps"," ",null,"2018-02-05","13:30:00","Appel d'entreprise",{"$f":"PlanificateurÉvénements[[#This Row],[DATE]]&\"|\"&COUNTIF($E$3:E10,E10)","v":"43136|8"}]
[{"$nulls":4},"2018-02-05","15:00:00","Pause",{"$f":"PlanificateurÉvénements[[#This Row],[DATE]]&\"|\"&COUNTIF($E$3:E11,E11)","v":"43136|9"}]
[null,"Opérez une sélection pour afficher l'emploi du temps quotidien","  ",null,"2018-02-05","17:00:00","Accueil",{"$f":"PlanificateurÉvénements[[#This Row],[DATE]]&\"|\"&COUNTIF($E$3:E12,E12)","v":"43136|10"}]
[{"$nulls":4},"2018-02-05","18:00:00","Pratique de soccer",{"$f":"PlanificateurÉvénements[[#This Row],[DATE]]&\"|\"&COUNTIF($E$3:E13,E13)","v":"43136|11"}]
[{"$nulls":4},{"$f":"TODAY()+1","v":"2018-02-06"},"06:30:00","Déjeuner",{"$f":"PlanificateurÉvénements[[#This Row],[DATE]]&\"|\"&COUNTIF($E$3:E14,E14)","v":"43137|1"}]
[{"$nulls":4},{"$f":"TODAY()+1","v":"2018-02-06"},"07:30:00","Départ au travail",{"$f":"PlanificateurÉvénements[[#This Row],[DATE]]&\"|\"&COUNTIF($E$3:E15,E15)","v":"43137|2"}]

{"sheet":"Intervalles de temps","index":2,"n_rows":75,"n_cols":5,"rows_kept":75,"merged":[[1,1,1,2],[9,1,9,2]]}
[null,"Intervalles de temps"]
[null,"MODIFIER LA TABLE HORAIRE",null,null,"Heure"]
[{"$nulls":4},{"$f":"Heure_Début","v":"06:00:00"}]
[null,"Heure de début","06:00:00",null,{"$f":"IFERROR(IF($E3+Incrément>HeureFin,\"\",$E3+Incrément),\"\")","v":"06:15:00"}]
[{"$nulls":4},"06:30:00"]
[null,"Intervalle","15 MIN",null,"06:45:00"]
[{"$nulls":4},"07:00:00"]
[null,"Heure de fin","21:00:00",null,"07:15:00"]
[{"$nulls":4},"07:30:00"]
[null,"AFFICHER L'EMPLOI DU TEMPS",null,null,"07:45:00"]
[{"$nulls":4},"08:00:00"]
[null,"Opérez une sélection pour afficher l’emploi du temps quotidien",null,null,"08:15:00"]
[{"$nulls":4},"08:30:00"]
[null,"Opérez une sélection pour ajouter un événement",null,null,"08:45:00"]
[{"$nulls":4},"09:00:00"]
[{"$nulls":4},"09:15:00"]
[{"$nulls":4},"09:30:00"]
[{"$nulls":4},"09:45:00"]
[{"$nulls":4},"10:00:00"]
[{"$nulls":4},"10:15:00"]
[{"$nulls":4},{"$f":"IFERROR(IF($E20+Incrément>HeureFin,\"\",$E20+Incrément),\"\")","v":"10:30:00"}]
[{"$nulls":4},"10:45:00"]
[{"$nulls":4},"11:00:00"]
[{"$nulls":4},"11:15:00"]
[{"$nulls":4},"11:30:00"]
[{"$nulls":4},"11:45:00"]
[{"$nulls":4},"12:00:00"]
[{"$nulls":4},"12:15:00"]
[{"$nulls":4},"12:30:00"]
[{"$nulls":4},"12:45:00"]
[{"$nulls":4},"13:00:00"]
[{"$nulls":4},"13:15:00"]
[{"$nulls":4},"13:30:00"]
[{"$nulls":4},"13:45:00"]
[{"$nulls":4},"14:00:00"]
[{"$nulls":4},{"$f":"IFERROR(IF($E35+Incrément>HeureFin,\"\",$E35+Incrément),\"\")","v":"14:15:00"}]
[{"$nulls":4},"14:30:00"]
[{"$nulls":4},"14:45:00"]
[{"$nulls":4},"15:00:00"]
[{"$nulls":4},"15:15:00"]
[{"$nulls":4},"15:30:00"]
[{"$nulls":4},"15:45:00"]
[{"$nulls":4},"16:00:00"]
[{"$nulls":4},"16:15:00"]
[{"$nulls":4},"16:30:00"]
[{"$nulls":4},"16:45:00"]
[{"$nulls":4},"17:00:00"]
[{"$nulls":4},"17:15:00"]
[{"$nulls":4},"17:30:00"]
[{"$nulls":4},"17:45:00"]
[{"$nulls":4},"18:00:00"]
[{"$nulls":4},"18:15:00"]
[{"$nulls":4},"18:30:00"]
[{"$nulls":4},"18:45:00"]
[{"$nulls":4},"19:00:00"]
[{"$nulls":4},"19:15:00"]
[{"$nulls":4},"19:30:00"]
[{"$nulls":4},"19:45:00"]
[{"$nulls":4},"20:00:00"]
[{"$nulls":4},"20:15:00"]
[{"$nulls":4},"20:30:00"]
[{"$nulls":4},"20:45:00"]
[{"$nulls":4},"21:00:00"]
[{"$nulls":4},""]
[{"$nulls":4},""]
[{"$nulls":4},""]
[{"$nulls":4},""]
[{"$nulls":4},{"$f":"IFERROR(IF($E67+Incrément>HeureFin,\"\",$E67+Incrément),\"\")","v":""}]
[{"$nulls":4},""]
[{"$nulls":4},""]
[{"$nulls":4},""]
[{"$nulls":4},""]
[{"$nulls":4},""]
[{"$nulls":4},""]
[{"$nulls":4},""]